[Event "Gibraltar Challengers A 2019"]
[Site "Caleta"]
[Date "2019.01.23"]
[Round "3"]
[White "Janiszewski, Maciej"]
[Black "Elishev, Ivan"]
[Result "1/2-1/2"]
[ECO "B33"]
[WhiteElo "2146"]
[BlackElo "2224"]
[Annotator "NA"]
[PlyCount "171"]
[EventDate "2019.01.18"]
[EventType "swiss"]
[EventCountry "GGB"]
[SourceTitle "playchess.com"]
[Source "ChessBase"]
[SourceQuality "1"]
[TimeControl "6600+10"]

1. e4 {[%emt 0:00:00]} c5 {[%emt 0:01:25]} 2. Nf3 {[%emt 0:00:12]} Nc6 {[%emt 0:00:05]} 3. d4 {[%emt 0:00:16]} cxd4 {[%emt 0:00:04]} 4. Nxd4 {[%emt 0:00:05]} Nf6 {[%emt 0:17:17]} 5. Nc3 {[%emt 0:00:53]} e5 {[%emt 0:00:01]} 6. Ndb5 {[%emt 0:00:40]} d6 {[%emt 0:00:11]} 7. Nd5 {[%emt 0:04:58]} Nxd5 {[%emt 0:00:05]} 8. exd5 {[%emt 0:00:05]} Nb8 {[%emt 0:12:04]} 9. c3 {[%emt 0:00:36]} Be7 {[%emt 0:01:41] LiveBook: 6 Games B33: Sicilian: Pelikan and Sveshnikov Variations} 10. Be3 {[%emt 0:02:06]} a6 {[%emt 0:07:21]} 11. Na3 {[%emt 0:00:31]} Nd7 {[%emt 0:03:02]} 12. f4 $146 {[%emt 0:05:51]} ({Predecessor:} 12. Qg4 Nf6 13. Qxg7 Rg8 14. Qh6 Rg6 15. Qh4 Bg4 16. Bg5 h6 17. Bxf6 Bxf6 {0-1 (32) Samame Castillo,J (2228)-Cordova,E (2429) Lima 2006}) 12... O-O {[%emt 0:02:24]} 13. Bd3 {[%emt 0:03:41]} exf4 {[%emt 0:14:33]} 14. Bxf4 {[%emt 0:00:08] [#]} Ne5 {[%emt 0:00:27]} (14... Bh4+ $1 $17 15. Kd2 (15. g3 Re8+ 16. Be2 Nc5 $15) 15... Ne5 16. Bxe5 Qg5+ 17. Bf4 Qxf4+ 18. Kc2 Bg5) 15. Be2 {[%emt 0:08:00]} Bg5 {[%emt 0:29:32]} 16. Qd2 {[%emt 0:02:43]} Bxf4 {[%emt 0:02:21]} 17. Qxf4 {[%emt 0:00:07] [#]} Bg4 $1 {[%emt 0:14:42]} 18. Qf2 {[%emt 0:12:49]} Bxe2 {[%emt 0:00:21]} 19. Qxe2 {[%emt 0:01:30]} Qh4+ {[%emt 0:00:01]} 20. g3 {[%emt 0:07:46]} Qh3 {[%emt 0:01:17]} 21. O-O-O {[%emt 0:00:33]} b5 {[%emt 0:00:27]} 22. Kb1 {[%emt 0:01:16]} Rae8 {[%emt 0:01:14]} 23. Qf1 {[%emt 0:08:36]} Qh5 {[%emt 0:00:57]} 24. Qf4 {[%emt 0:02:47]} Qg6+ {[%emt 0:00:26]} 25. Ka1 {[%emt 0:00:54]} Nd3 {[%emt 0:00:23]} 26. Qd4 {[%emt 0:00:35]} Nc5 {[%emt 0:00:16]} 27. Rhe1 {[%emt 0:00:57]} Qh5 {[%emt 0:00:01]} 28. h4 {[%emt 0:04:18]} Qf3 {[%emt 0:00:02]} 29. Qf4 {[%emt 0:00:57]} Qxf4 {[%emt 0:01:01]} 30. gxf4 {[%emt 0:00:05]} f5 {[%emt 0:00:54]} 31. Nc2 {[%emt 0:02:10]} Re4 {[%emt 0:00:05]} 32. Rf1 {[%emt 0:04:24]} Rfe8 {[%emt 0:00:01]} 33. Nd4 {[%emt 0:00:17]} g6 {[%emt 0:00:02]} 34. h5 {[%emt 0:00:28]} Kf7 {[%emt 0:00:11]} 35. Nf3 {[%emt 0:01:47]} Kf6 {[%emt 0:00:38]} 36. Ng5 {[%emt 0:00:31]} R4e7 {[%emt 0:00:05]} 37. hxg6 {[%emt 0:00:20]} hxg6 {[%emt 0:00:07]} 38. Rh1 {[%emt 0:00:15]} Ne4 {[%emt 0:00:19]} 39. Nxe4+ {[%emt 0:10:45]} fxe4 {[%emt 0:00:01]} 40. Rdg1 {[%emt 0:01:28]} e3 $19 {[%emt 0:00:12]} 41. Kb1 {[%emt 0:00:50]} e2 {[%emt 0:00:03]} 42. Re1 {[%emt 0:00:03]} Kf5 {[%emt 0:00:15]} 43. Rhg1 {[%emt 0:00:17]} Re4 {[%emt 0:00:15]} 44. Rg5+ {[%emt 0:00:43]} Kf6 {[%emt 0:00:01]} 45. Rg2 {[%emt 0:00:15]} Rxf4 {[%emt 0:00:23]} 46. Rgxe2 {[%emt 0:00:10]} Rxe2 {[%emt 0:00:12]} 47. Rxe2 {[%emt 0:00:01]} Kf7 {[%emt 0:00:08]} 48. b3 {[%emt 0:01:05]} Rf5 {[%emt 0:00:02]} 49. c4 {[%emt 0:00:08]} bxc4 {[%emt 0:00:01]} 50. bxc4 {[%emt 0:00:03]} Rf4 {[%emt 0:00:26]} 51. Rc2 {[%emt 0:02:06]} g5 {[%emt 0:00:02]} 52. Kb2 {[%emt 0:00:33]} Rf3 {[%emt 0:00:20]} 53. Re2 {[%emt 0:00:55]} g4 {[%emt 0:00:12]} 54. Kc2 {[%emt 0:00:55]} g3 {[%emt 0:00:06]} 55. Re4 {[%emt 0:00:51]} Ra3 {[%emt 0:00:14]} 56. Kb2 {[%emt 0:00:14]} Rd3 {[%emt 0:00:04]} 57. Kc2 {[%emt 0:00:49]} Rf3 {[%emt 0:00:14]} 58. Rg4 {[%emt 0:01:38]} Kf6 {[%emt 0:00:03]} 59. Kd2 {[%emt 0:01:05]} Ke5 {[%emt 0:00:04]} 60. Ke2 {[%emt 0:00:18]} Ra3 {[%emt 0:00:01]} 61. Kf1 {[%emt 0:00:10]} Rc3 {[%emt 0:00:34]} 62. Kg2 {[%emt 0:00:14]} a5 {[%emt 0:00:01]} 63. a4 {[%emt 0:01:45]} Ra3 {[%emt 0:00:01]} 64. Rh4 {[%emt 0:00:10]} Rxa4 {[%emt 0:00:20]} 65. Kxg3 {[%emt 0:00:04]} Ra3+ {[%emt 0:00:08]} 66. Kf2 {[%emt 0:00:04]} a4 {[%emt 0:00:08]} 67. Ke2 {[%emt 0:00:18]} Ra1 {[%emt 0:00:19]} 68. Kd3 {[%emt 0:00:14]} Rd1+ {[%emt 0:00:07]} 69. Kc3 {[%emt 0:00:13]} a3 {[%emt 0:00:04]} 70. Rh2 {[%emt 0:00:52]} Re1 {[%emt 0:00:09]} 71. Ra2 {[%emt 0:02:34]} Re3+ {[%emt 0:00:01]} 72. Kb4 {[%emt 0:00:07]} Kd4 {[%emt 0:00:08]} 73. Rd2+ {[%emt 0:01:26]} Rd3 {[%emt 0:00:01]} 74. Re2 {[%emt 0:00:18]} Rd1 {[%emt 0:00:27]} 75. Kb5 {[%emt 0:02:55]} Rb1+ {[%emt 0:00:12]} 76. Kc6 {[%emt 0:00:00]} Rb2 {[%emt 0:00:17]} 77. Re1 {[%emt 0:00:18]} a2 {[%emt 0:00:14]} 78. Ra1 {[%emt 0:00:10]} Kxc4 {[%emt 0:00:06]} 79. Kxd6 {[%emt 0:00:03]} Rd2 {[%emt 0:00:15]} 80. Kc6 {[%emt 0:00:06]} Kb3 {[%emt 0:00:11]} 81. d6 {[%emt 0:00:03]} Kb2 {[%emt 0:00:07]} 82. Rxa2+ {[%emt 0:00:02]} Kxa2 {[%emt 0:00:02]} 83. d7 {[%emt 0:00:01]} Rc2+ {[%emt 0:00:05]} 84. Kb7 {[%emt 0:00:02]} Rd2 {[%emt 0:00:02]} 85. Kc7 {[%emt 0:00:01]} Rxd7+ {[%emt 0:00:02]} 86. Kxd7 {[%emt 0:00:02]} 1/2-1/2

[Event "Gibraltar Challengers A 2019"]
[Site "Caleta"]
[Date "2019.01.23"]
[Round "3"]
[White "Kandic, Milan"]
[Black "Lucas Vega, Ivan"]
[Result "1/2-1/2"]
[ECO "D02"]
[WhiteElo "2136"]
[BlackElo "2203"]
[Annotator "NA"]
[PlyCount "65"]
[EventDate "2019.01.18"]
[EventType "swiss"]
[EventCountry "GGB"]
[SourceTitle "playchess.com"]
[Source "ChessBase"]
[SourceQuality "1"]
[TimeControl "6600+10"]

{[%evp 9,53,24,32767,16,32767,32767,32767,0,2,3,0,4,0,0,23,10,16,4,16,2,5,-6,0,-1,32767,32767,32767,-4,32767,32767,32767,32767,0,-29,-25,-35,-25,32767,0,0,0,0,0,0,32767,-34]} 1. Nf3 {[%emt 0:00:00]} e6 {[%emt 0:00:00]} 2. d4 {[%emt 0:00:19]} d5 {[%emt 0:00:22]} 3. Bf4 {[%emt 0:00:13]} Nf6 {[%emt 0:00:28]} 4. e3 {[%emt 0:00:37]} c6 {[%emt 0:00:54]} 5. Bd3 {[%emt 0:00:08] LiveBook: 6 Games} Be7 {[%emt 0:00:54] D02: 1 d4 d5 2 Nf3 sidelines, including 2...Nf6 3 g3 and 2...Nf6 3 Bf4} 6. h3 {[%emt 0:00:18]} Nbd7 {[%emt 0:02:03]} 7. a4 $146 {[%emt 0:00:28]} ({Predecessor:} 7. Nbd2 b6 8. Ne5 Nxe5 9. dxe5 Nd7 10. Qg4 g5 11. Bg3 h5 12. Qe2 {1-0 (32) Nisipeanu,L (2687)-Volodin,A (2473) Baku 2016}) 7... b6 {[%emt 0:05:25]} 8. Ne5 {[%emt 0:01:47]} Bb7 {[%emt 0:03:19]} 9. Nd2 {[%emt 0:02:43]} a5 {[%emt 0:04:09]} 10. Ndf3 {[%emt 0:00:23]} Nxe5 {[%emt 0:02:38]} 11. Nxe5 {[%emt 0:00:56]} Nd7 {[%emt 0:12:49]} 12. Qh5 {[%emt 0:08:15]} Nxe5 {[%emt 0:00:38]} 13. Bxe5 {[%emt 0:00:49]} Bf6 {[%emt 0:01:02]} 14. O-O {[%emt 0:01:28]} Bxe5 {[%emt 0:07:16]} 15. dxe5 {[%emt 0:06:18]} Qe7 {[%emt 0:03:38]} 16. c3 {[%emt 0:06:33]} Ba6 {[%emt 0:03:51]} 17. Bxa6 {[%emt 0:03:23]} Rxa6 {[%emt 0:00:03]} 18. e4 {[%emt 0:01:20]} O-O {[%emt 0:01:31]} 19. exd5 {[%emt 0:05:05]} cxd5 {[%emt 0:02:31]} 20. Rad1 {[%emt 0:02:13]} g6 {[%emt 0:09:36]} 21. Qe2 {[%emt 0:19:34]} Ra7 {[%emt 0:00:44]} 22. Rd4 {[%emt 0:00:48]} Rc8 {[%emt 0:00:39]} 23. h4 {[%emt 0:00:25]} Rac7 {[%emt 0:02:49]} 24. h5 {[%emt 0:01:14]} Rc4 {[%emt 0:01:02]} 25. Rfd1 {[%emt 0:02:04]} Qg5 {[%emt 0:06:49]} 26. hxg6 {[%emt 0:04:05]} hxg6 {[%emt 0:02:36]} 27. f4 $15 {[%emt 0:07:40]} Qe7 {[%emt 0:00:47]} 28. Qf2 {[%emt 0:03:10]} Kg7 {[%emt 0:11:19]} 29. Rxc4 {[%emt 0:08:08]} Rxc4 {[%emt 0:00:02]} 30. Rd4 {[%emt 0:00:14]} Qc5 {[%emt 0:02:37]} 31. Rxc4 {[%emt 0:07:08]} Qxc4 {[%emt 0:00:19]} 32. Qxb6 {[%emt 0:00:29]} Qxa4 {[%emt 0:03:48]} 33. Qf2 {[%emt 0:00:53]} 1/2-1/2

[Event "Gibraltar Challengers A 2019"]
[Site "Caleta"]
[Date "2019.01.23"]
[Round "3"]
[White "Jordan Martinez, David"]
[Black "Torres, Federico"]
[Result "0-1"]
[ECO "C55"]
[WhiteElo "2125"]
[BlackElo "2196"]
[Annotator "NA"]
[PlyCount "104"]
[EventDate "2019.01.18"]
[EventType "swiss"]
[EventCountry "GGB"]
[SourceTitle "playchess.com"]
[Source "ChessBase"]
[SourceQuality "1"]
[TimeControl "6600+10"]

1. e4 {[%emt 0:00:00]} e5 {[%emt 0:00:03]} 2. Nf3 {[%emt 0:00:10]} Nc6 {[%emt 0:00:31]} 3. Bc4 {[%emt 0:00:21]} Nf6 {[%emt 0:00:41]} 4. O-O {[%emt 0:06:31]} Nxe4 {[%emt 0:38:56] LiveBook: 43 Games} 5. Nc3 {[%emt 0:22:43]} Nxc3 {[%emt 0:13:05]} 6. dxc3 {[%emt 0:01:16]} Qf6 {[%emt 0:28:59]} 7. Ng5 {[%emt 0:20:02]} Nd8 {[%emt 0:00:40]} 8. f4 {[%emt 0:04:06]} h6 {[%emt 0:06:54] [#]} 9. Ne4 $14 {[%emt 0:09:30]} (9. Nxf7 $1 $16 {[%mdl 512]} Nxf7 10. fxe5 Qb6+ 11. Kh1) 9... Qb6+ {[%emt 0:01:57]} 10. Kh1 {[%emt 0:00:11]} exf4 {[%emt 0:01:50]} 11. Bxf4 {[%emt 0:04:09]} Be7 {[%emt 0:03:24]} 12. Qg4 {[%emt 0:06:29]} Rh7 {[%emt 0:04:48]} 13. Qg3 {[%emt 0:12:12]} d6 {[%emt 0:02:03]} 14. Rae1 {[%emt 0:12:13]} Be6 {[%emt 0:02:06]} 15. Bxe6 {[%emt 0:04:54]} Nxe6 {[%emt 0:00:05]} 16. Nxd6+ {[%emt 0:03:38]} cxd6 {[%emt 0:00:05]} 17. Rxe6 {[%emt 0:00:15]} fxe6 {[%emt 0:00:04]} 18. Qg6+ {[%emt 0:00:03]} Kd7 {[%emt 0:00:03]} 19. Qxh7 {[%emt 0:00:03]} Rf8 {[%emt 0:00:24]} 20. Qd3 {[%emt 0:02:56]} Qxb2 {[%emt 0:00:06]} 21. a4 {[%emt 0:01:27]} a6 {[%emt 0:01:57]} 22. h3 {[%emt 0:00:16]} g5 {[%emt 0:01:34]} 23. Bg3 {[%emt 0:00:01]} Rxf1+ 24. Qxf1 {[%emt 0:00:01]} Qxc3 {[%emt 0:00:21]} 25. Kh2 {[%emt 0:00:05]} Qxc2 {[%emt 0:00:17]} 26. a5 {[%emt 0:00:01]} Qc3 {[%emt 0:00:07]} 27. Qb1 {[%emt 0:00:08]} Qc7 {[%emt 0:01:19]} 28. Qg6 {[%emt 0:00:25]} Qxa5 {[%emt 0:00:03]} 29. Qxh6 {[%emt 0:00:01]} Qc3 {[%emt 0:00:18]} 30. Qh7 {[%emt 0:00:05]} b5 {[%emt 0:00:04]} 31. h4 {[%emt 0:00:09]} g4 {[%emt 0:01:52]} 32. h5 {[%emt 0:00:01]} Qf6 {[%emt 0:00:13]} 33. h6 {[%emt 0:00:06]} Kc6 {[%emt 0:00:29]} 34. Qg7 {[%emt 0:00:37]} b4 {[%emt 0:00:07]} 35. Qh7 {[%emt 0:00:16]} b3 {[%emt 0:00:08]} 36. Qe4+ {[%emt 0:00:02]} Kc7 {[%emt 0:00:10]} 37. h7 {[%emt 0:00:13]} b2 {[%emt 0:00:06]} 38. Be1 {[%emt 0:00:26]} g3+ {[%emt 0:00:17]} 39. Bxg3 {[%emt 0:00:09]} Qh6+ {[%emt 0:00:02]} 40. Kg1 {[%emt 0:00:11]} Qc1+ {[%emt 0:00:02]} 41. Kh2 {[%emt 0:00:01]} b1=Q {[%emt 0:00:03]} 42. Qxb1 {[%emt 0:00:10]} Qxb1 {[%emt 0:00:01]} 43. h8=Q {[%emt 0:00:03]} Qd3 {[%emt 0:00:09]} 44. Qa8 {[%emt 0:00:11]} Qb5 {[%emt 0:00:05]} 45. Qe4 {[%emt 0:00:11]} Kd7 {[%emt 0:00:09]} 46. Qh7 {[%emt 0:00:08]} Qg5 {[%emt 0:00:12]} 47. Qb1 {[%emt 0:00:12]} a5 {[%emt 0:00:25]} 48. Qb7+ {[%emt 0:00:09]} Ke8 {[%emt 0:00:01]} 49. Qc6+ {[%emt 0:00:14]} Kf7 {[%emt 0:00:16]} 50. Bxd6 {[%emt 0:00:27]} Qh4+ {[%emt 0:00:02]} 51. Kg1 {[%emt 0:00:03]} Qd4+ {[%emt 0:00:01]} 52. Kh1 {[%emt 0:00:04]} Qd1+ {[%emt 0:00:02]} 0-1

[Event "Gibraltar Challengers A 2019"]
[Site "Caleta"]
[Date "2019.01.23"]
[Round "3"]
[White "Osuna Vega, Enrique"]
[Black "Longa Yauca, Javier"]
[Result "0-1"]
[ECO "A29"]
[WhiteElo "2116"]
[BlackElo "2226"]
[Annotator "NA"]
[PlyCount "118"]
[EventDate "2019.01.18"]
[EventType "swiss"]
[EventCountry "GGB"]
[SourceTitle "playchess.com"]
[Source "ChessBase"]
[SourceQuality "1"]
[TimeControl "6600+10"]

1. c4 {[%emt 0:00:00]} Nf6 {[%emt 0:00:00]} 2. Nc3 {[%emt 0:00:02]} e5 {[%emt 0:00:04]} 3. g3 {[%emt 0:01:41]} Nc6 {[%emt 0:00:13]} 4. a3 {[%emt 0:01:14]} a5 {[%emt 0:00:11]} 5. Bg2 {[%emt 0:00:09]} Bc5 {[%emt 0:00:13]} 6. Nf3 {[%emt 0:02:45]} d6 {[%emt 0:01:39]} 7. d3 {[%emt 0:01:37]} h6 {[%emt 0:00:21] LiveBook: 18 Games} 8. O-O {[%emt 0:01:10]} O-O {[%emt 0:00:28]} 9. Rb1 {[%emt 0:05:53]} Bf5 {[%emt 0:01:49] A29: English Opening: Four Knights Variation with 4 g3} (9... Be6 10. Bd2 Qd7 11. e3 Bf5 12. Qe2 e4 13. dxe4 Nxe4 14. Rbd1 Rae8 15. Nxe4 Bxe4 16. Bc3 Qf5 17. Rd2 {½-½ (58) Dzagnidze,N (2570)-Gunina,V (2522) Beijing 2014}) 10. Nd2 {[%emt 0:02:53]} Qd7 {[%emt 0:05:53]} 11. Nde4 {[%emt 0:01:48]} Nxe4 {[%emt 0:00:48]} 12. Nxe4 {[%emt 0:00:35]} Ba7 {[%emt 0:01:26]} 13. b4 {[%emt 0:04:06]} axb4 {[%emt 0:00:46]} 14. axb4 {[%emt 0:00:06]} Bh3 {[%emt 0:00:46]} 15. b5 {[%emt 0:00:55]} Ne7 $146 {[%emt 0:00:45]} ({Predecessor:} 15... Bxg2 16. Kxg2 Nd4 17. e3 {1-0 (33) Boskemper,D (1669)-De Wit,G (1695) Venlo 2000}) 16. e3 {[%emt 0:01:54]} Bxg2 {[%emt 0:01:56]} 17. Kxg2 {[%emt 0:00:02]} f5 {[%emt 0:00:28]} 18. Nc3 {[%emt 0:00:21]} Qe6 {[%emt 0:01:55]} 19. Qe2 {[%emt 0:14:35]} Bb6 {[%emt 0:01:08]} 20. Bd2 {[%emt 0:11:15]} Qg6 {[%emt 0:00:51]} 21. Kh1 {[%emt 0:00:57]} Ra3 {[%emt 0:03:24]} 22. Ra1 {[%emt 0:03:23]} Rfa8 {[%emt 0:00:22]} 23. Rxa3 {[%emt 0:00:02]} Rxa3 {[%emt 0:00:16]} 24. Qf3 {[%emt 0:02:05]} c6 {[%emt 0:01:47]} 25. bxc6 {[%emt 0:02:21]} bxc6 {[%emt 0:00:33]} 26. Qd1 {[%emt 0:07:02]} d5 {[%emt 0:11:35]} 27. Na4 {[%emt 0:05:58]} c5 {[%emt 0:15:54] [#]} 28. Bc1 $1 {[%emt 0:08:48]} Ra1 {[%emt 0:01:01]} 29. Qb3 {[%emt 0:00:32]} dxc4 {[%emt 0:00:54]} (29... Qc6 $1 $11 30. Qxb6 Rxa4 31. Qxc6 Nxc6) 30. Qxc4+ {[%emt 0:03:46]} Kh7 {[%emt 0:00:40]} 31. Kg1 {[%emt 0:02:55]} Ba7 {[%emt 0:06:50]} 32. Nxc5 {[%emt 0:01:47]} Qc6 {[%emt 0:04:39]} 33. Nb3 {[%emt 0:06:58]} Qxc4 {[%emt 0:00:36]} 34. dxc4 {[%emt 0:00:02]} Ra4 {[%emt 0:00:51]} 35. Bb2 {[%emt 0:03:56]} Nc6 {[%emt 0:01:03]} 36. Nd2 {[%emt 0:00:39]} Ra2 {[%emt 0:02:07]} 37. Rb1 {[%emt 0:00:31]} e4 {[%emt 0:01:01]} 38. Bc3 {[%emt 0:06:31]} Rc2 {[%emt 0:01:00]} 39. Rb3 {[%emt 0:00:10]} Bb8 {[%emt 0:03:34]} 40. f4 {[%emt 0:02:26]} exf3 {[%emt 0:08:35]} 41. Nxf3 {[%emt 0:00:05]} Ba7 {[%emt 0:00:09]} 42. Nd4 {[%emt 0:02:05]} Rxc3 {[%emt 0:01:20]} 43. Rxc3 {[%emt 0:00:16]} Nxd4 {[%emt 0:00:03]} 44. Ra3 {[%emt 0:00:17]} Nc6 {[%emt 0:00:46]} 45. Kf2 {[%emt 0:00:01]} Bc5 {[%emt 0:01:45]} 46. Ra6 {[%emt 0:00:08]} Ne5 {[%emt 0:00:46]} 47. Ke2 $11 {[%emt 0:00:46]} Kg8 {[%emt 0:02:50]} 48. Ra5 {[%emt 0:00:08]} Nd7 {[%emt 0:00:18]} 49. Kd3 {[%emt 0:00:16]} g5 {[%emt 0:01:58]} 50. e4 {[%emt 0:00:02]} f4 {[%emt 0:02:19]} 51. gxf4 {[%emt 0:00:01]} gxf4 {[%emt 0:00:02]} 52. e5 {[%emt 0:00:31]} f3 {[%emt 0:06:28]} 53. e6 {[%emt 0:00:02]} Ne5+ {[%emt 0:00:17]} 54. Ke4 {[%emt 0:00:16]} f2 {[%emt 0:00:42]} 55. Kxe5 {[%emt 0:00:14]} f1=Q {[%emt 0:04:57]} 56. Rxc5 {[%emt 0:00:02]} Qe2+ {[%emt 0:00:52]} 57. Kf6 {[%emt 0:00:19]} Qb2+ {[%emt 0:01:19]} 58. Kg6 {[%emt 0:00:09]} Qg2+ {[%emt 0:01:35]} 59. Kf6 {[%emt 0:00:09]} Qg7+ {[%emt 0:00:14]} 0-1

[Event "Gibraltar Challengers A 2019"]
[Site "Caleta"]
[Date "2019.01.23"]
[Round "3"]
[White "Suez-Panama, Gilles"]
[Black "Carrascoso Morales, Abel"]
[Result "0-1"]
[ECO "A06"]
[WhiteElo "2078"]
[BlackElo "2219"]
[Annotator "NA"]
[PlyCount "146"]
[EventDate "2019.01.18"]
[EventType "swiss"]
[EventCountry "GGB"]
[SourceTitle "playchess.com"]
[Source "ChessBase"]
[SourceQuality "1"]
[TimeControl "6600+10"]

1. Nf3 {[%emt 0:00:05]} c5 {[%emt 0:02:24]} 2. b3 {[%emt 0:00:08]} d5 {[%emt 0:00:18]} 3. e3 {[%emt 0:00:18]} Nf6 {[%emt 0:00:23]} 4. Bb2 {[%emt 0:00:06]} a6 {[%emt 0:01:45]} 5. Bd3 {[%emt 0:00:32]} Nc6 {[%emt 0:00:19]} 6. O-O {[%emt 0:01:10]} Bg4 {[%emt 0:00:57]} 7. h3 {[%emt 0:00:34]} Bh5 {[%emt 0:00:49]} 8. Be2 {[%emt 0:01:25]} Qc7 {[%emt 0:04:24]} 9. d4 {[%emt 0:02:36]} e6 {[%emt 0:01:32]} 10. Nbd2 {[%emt 0:02:33]} cxd4 {[%emt 0:04:50]} 11. exd4 {[%emt 0:03:37]} (11. Nxd4 $5 {[%cal Re2h5]} Bxe2 12. Nxe2 $11) 11... Be7 {[%emt 0:01:46]} 12. Re1 {[%emt 0:10:44]} O-O {[%emt 0:01:13]} 13. Ne5 {[%emt 0:08:22]} Bxe2 {[%emt 0:00:29]} 14. Rxe2 {[%emt 0:00:13]} Nxe5 {[%emt 0:02:15]} 15. dxe5 {[%emt 0:02:00]} Nh5 {[%emt 0:01:22]} 16. g3 {[%emt 0:06:39]} f6 {[%emt 0:06:06]} 17. Re3 {[%emt 0:07:59]} (17. Nf3 $11) 17... g6 {[%emt 0:02:47]} (17... Bc5 $15 18. Rc3 Qxe5) 18. Nf3 {[%emt 0:02:04]} fxe5 {[%emt 0:04:19]} 19. Bxe5 {[%emt 0:01:55]} Bd6 {[%emt 0:00:42]} 20. Qd4 {[%emt 0:08:32]} Rf5 {[%emt 0:03:36]} (20... Bxe5 $14 21. Nxe5 Nf6) 21. Bxd6 {[%emt 0:12:34]} Qxd6 {[%emt 0:00:06]} 22. Rae1 {[%emt 0:00:17]} Ng7 {[%emt 0:05:07]} 23. g4 {[%emt 0:04:24]} Rf4 {[%emt 0:01:15]} 24. Qe5 {[%emt 0:00:25]} Qxe5 {[%emt 0:01:18]} 25. Nxe5 {[%emt 0:00:03]} Rc8 {[%emt 0:02:46]} 26. R1e2 {[%emt 0:01:30]} g5 {[%emt 0:00:35]} 27. Kg2 {[%emt 0:01:40]} b5 {[%emt 0:03:03]} 28. Nf3 {[%emt 0:03:00]} h6 {[%emt 0:00:46]} 29. c3 {[%emt 0:00:21]} b4 {[%emt 0:01:14]} 30. cxb4 {[%emt 0:01:39]} Rxb4 {[%emt 0:00:03]} 31. Ne5 {[%emt 0:00:56]} a5 {[%emt 0:02:33]} 32. a3 {[%emt 0:04:38]} ({White should try} 32. Rf3 $16) 32... Rf4 {[%emt 0:02:16]} 33. Nd3 {[%emt 0:04:14]} Rd4 {[%emt 0:01:20]} 34. Ne5 {[%emt 0:00:29]} Rc1 {[%emt 0:05:11]} 35. Rb2 $11 {[%emt 0:01:22]} Rdd1 {[%emt 0:03:22]} 36. Nf3 {[%emt 0:00:39]} d4 {[%emt 0:03:01]} 37. Re4 {[%emt 0:03:08]} d3 {[%emt 0:02:08]} 38. Rd2 {[%emt 0:03:43]} Rxd2 {[%emt 0:01:34]} 39. Nxd2 {[%emt 0:00:02]} Rc2 {[%emt 0:03:20]} 40. Nc4 {[%emt 0:02:49]} e5 {[%emt 0:03:25]} 41. Rxe5 {[%emt 0:02:44]} a4 {[%emt 0:00:33]} 42. Na5 {[%emt 0:00:36]} d2 {[%emt 0:01:59]} 43. Rd5 {[%emt 0:00:08]} Ne6 {[%emt 0:00:28]} 44. Rd6 {[%emt 0:00:41]} Nf4+ {[%emt 0:01:00]} 45. Kh2 {[%emt 0:00:45]} Rc5 {[%emt 0:06:14]} 46. Rxd2 {[%emt 0:00:06]} Rxa5 {[%emt 0:00:07]} 47. bxa4 {[%emt 0:00:11]} Rxa4 {[%emt 0:00:05]} 48. Ra2 {[%emt 0:01:36]} Kf7 {[%emt 0:00:25]} 49. Kg3 {[%emt 0:00:04]} Ng6 {[%emt 0:00:30]} 50. f3 {[%emt 0:00:14]} Nh4 {[%emt 0:03:07]} 51. Ra1 {[%emt 0:00:24]} Rf4 {[%emt 0:00:16]} 52. Rf1 {[%emt 0:00:05]} Ke6 {[%emt 0:00:14]} 53. Re1+ {[%emt 0:00:05]} Kd5 {[%emt 0:00:47]} 54. Re3 {[%emt 0:00:04]} Rc4 {[%emt 0:01:13]} 55. Rd3+ {[%emt 0:00:28]} Kc5 {[%emt 0:00:11]} 56. Rd8 {[%emt 0:00:12]} Rf4 {[%emt 0:01:26]} 57. Rd3 {[%emt 0:00:12]} Kc4 {[%emt 0:00:54]} 58. Re3 {[%emt 0:00:05]} Rd4 {[%emt 0:03:37]} 59. Re2 {[%emt 0:01:11]} Rd3 {[%emt 0:00:25]} 60. Rc2+ {[%emt 0:00:26]} Kb3 {[%emt 0:00:11]} 61. Rf2 {[%emt 0:00:04]} Kxa3 {[%emt 0:00:12]} 62. Rf1 {[%emt 0:00:12]} Kb2 {[%emt 0:00:19]} 63. Rf2+ {[%emt 0:00:04]} Kc3 {[%emt 0:00:09]} 64. Rf1 {[%emt 0:00:08]} Rd2 {[%emt 0:00:36]} 65. Rg1 {[%emt 0:00:14]} Rd3 {[%emt 0:00:20]} 66. Rf1 {[%emt 0:00:05]} Kd4 {[%emt 0:00:11]} 67. Rf2 {[%emt 0:00:12]} Ke3 {[%emt 0:00:51]} 68. Rf1 {[%emt 0:00:10]} Ke2 {[%emt 0:00:21]} 69. Rf2+ {[%emt 0:00:25]} Ke1 {[%emt 0:00:11]} 70. Ra2 {[%emt 0:00:10]} Rxf3+ {[%emt 0:00:08]} 71. Kh2 {[%emt 0:00:02]} Rf2+ {[%emt 0:00:06]} 72. Rxf2 {[%emt 0:00:04]} Kxf2 {[%emt 0:00:04]} 73. Kh1 {[%emt 0:00:01]} Kg3 {[%emt 0:00:06]} 0-1